fUST/lending_fUST_20251231
["ID","MTS","AMOUNT","RATE_DAILY","PERIOD"]
[400104381,1767118237975,-1407.14344565,0.00024799,2]
[400104382,1767118237986,-1407.14344565,0.00024799,2]
[400104383,1767118237997,-1407.14344565,0.00024799,2]
[400104384,1767118238006,-1407.14344565,0.00024799,2]
[400104385,1767118238017,-1407.14344565,0.00024799,2]
[400104386,1767118238027,-1407.14344565,0.00024799,2]
[400104387,1767118238038,-1407.14344565,0.00024799,2]
[400104388,1767118238047,-1407.14344565,0.00024799,2]
[400104389,1767118238057,-1407.14344565,0.00024799,2]
[400104390,1767118238067,-1407.14344565,0.00024799,2]
[400104391,1767118238076,-1407.14344565,0.00024799,2]
[400104392,1767118238086,-1407.14344565,0.00024799,2]
[400104393,1767118238096,-1407.14344565,0.00024799,2]
[400104394,1767118238105,-1407.14344565,0.00024799,2]
[400104395,1767118238120,-230.98,0.0002489,10]
[400104396,1767118238130,-170515.89290695,0.000249,2]
[400104397,1767118238139,-179.30196423,0.00024927,2]
[400104398,1767118238149,-430.82142807,0.00024931,2]
[400104399,1767118238160,-500.0,0.00024931,2]
[400104400,1767118238170,-500.0,0.00024932,2]
[400104401,1767118238181,-257.2775429,0.00025,2]
[400104402,1767118238191,-1018.0,0.00025,10]
[400104403,1767118238201,-500.0,0.00025069,7]
[400104404,1767118238210,-3292.0,0.00025184,2]
[400104405,1767118238221,-348.94,0.000252,7]
[400104406,1767118238231,-500.0,0.00025205,2]
[400104407,1767118238242,-277.51580534,0.00025287,2]
[400104408,1767118238252,-600.0,0.00025294,10]
[400104409,1767118238262,-500.0,0.00025479,2]
[400104410,1767118238273,-500.0,0.00025517,7]
[400104411,1767118238284,-314.41766043,0.00025753,2]
[400104412,1767118238294,-496.47127164,0.00025755,2]
[400104413,1767118238306,-152.94870132,0.00025755,2]
[400104414,1767118238316,-2398.4119403,0.00025755,2]
[400104415,1767118238327,-250.0,0.00025755,2]
[400104416,1767118238338,-250.0,0.00025755,2]
[400104417,1767118238349,-250.0,0.00025755,2]
[400104418,1767118238359,-257.40548047,0.00025755,2]
[400104419,1767118238370,-500.0,0.00025755,2]
[400104420,1767118238381,-500.0,0.00025755,2]
[400104421,1767118238392,-151.0,0.00025755,2]
[400104422,1767118238402,-500.0,0.00025755,2]
[400104423,1767118238413,-151.0,0.00025755,2]
[400104424,1767118238423,-500.0,0.00025755,2]
[400104425,1767118238436,-151.0,0.00025755,2]
[400104426,1767118238446,-151.0,0.00025755,2]
[400104427,1767118238457,-151.0,0.00025755,2]
[400104428,1767118238467,-151.0,0.00025755,2]
[400104429,1767118238477,-151.0,0.00025755,2]
[400104430,1767118238489,-151.0,0.00025755,2]
[400104431,1767118238501,-151.0,0.00025755,2]
[400104432,1767118238511,-151.0,0.00025755,2]
[400104433,1767118238521,-151.0,0.00025755,2]
[400104434,1767118238531,-151.0,0.00025755,2]
[400104435,1767118238542,-151.0,0.00025755,2]
[400104436,1767118238552,-151.0,0.00025755,2]
[400104437,1767118238564,-151.0,0.00025755,2]
[400104438,1767118238575,-37657.3822758,0.00026072,2]
[400104439,1767118238586,-2114.72966094,0.00026072,2]
[400104440,1767118238597,-500.0,0.00026076,7]
[400104441,1767118238608,-500.0,0.00026101,2]
[400104442,1767118238618,-500.0,0.00026101,2]
[400104443,1767118238629,-250.0,0.00026103,30]
[400104444,1767118238639,-5000.0,0.00026113,2]
[400104445,1767118238651,-1234.87972918,0.00026277,2]
[400104446,1767118238661,-514.84070869,0.00026303,2]
[400104447,1767118238671,-2487.15318209,0.00026303,2]
[400104448,1767118238685,-500.0,0.00026323,7]
[400104449,1767118238695,-500.0,0.00026376,2]
[400104450,1767118238705,-37657.3822758,0.00026414,2]
[400104451,1767118238715,-2114.72966094,0.00026414,2]
[400104452,1767118238726,-500.0,0.00026522,7]
[400104453,1767118238736,-500.0,0.0002655,7]
[400104454,1767118238746,-1033.14961331,0.00026575,7]
[400104455,1767118238757,-269.19084472,0.00026575,21]
[400104456,1767118238767,-500.0,0.00026783,7]
[400104457,1767118238776,-533.88981491,0.00026851,2]
[400104458,1767118238786,-562.61021307,0.00026851,2]
[400104459,1767118238796,-600.0,0.00026879,2]
[400104460,1767118238806,-2769.70299228,0.00026888,2]
[400104461,1767118238816,-206.706,0.00026894,14]
[400104462,1767118238826,-348.94,0.000269,7]
[400104463,1767118238837,-500.0,0.00026981,2]
[400104464,1767118238847,-500.0,0.00026981,2]
[400104465,1767118238858,-1267.74428336,0.00027,2]
[400104466,1767118238869,-1028.04,0.00027,14]
[400104467,1767118238880,-165.0,0.00027,7]
[400104468,1767118238891,-5000.0,0.00027058,9]
[400104469,1767118238901,-500.0,0.0002714,2]
[400104470,1767118238913,-5000.0,0.00027141,15]
[400104471,1767118238926,-4473.0,0.00027141,2]
[400104472,1767118238936,-150.0,0.00027141,2]
[400104473,1767118238948,-150.49,0.00027141,2]
[400104474,1767118238958,-250.0,0.00027141,2]
[400104475,1767118238969,-1364.0,0.00027141,2]
[400104476,1767118238979,-627.0,0.00027141,2]
[400104477,1767118238989,-2156.0,0.00027141,2]
[400104478,1767118239000,-600.0,0.00027159,2]
[400104479,1767118239010,-1234.87972917,0.00027183,2]
[400104480,1767118239019,-1978.218114,0.000272,2]
[400104481,1767118239029,-800.0,0.0002724,2]
[400104482,1767118239039,-37657.3822758,0.00027242,2]
[400104483,1767118239049,-2114.72966094,0.00027242,2]
[400104484,1767118239059,-3698.0,0.00027261,2]
[400104485,1767118239069,-2021.32553265,0.00027301,2]
[400104486,1767118239079,-500.0,0.00027305,7]
[400104487,1767118239089,-800.0,0.00027309,2]
[400104488,1767118239099,-172.20826889,0.00027314,8]
[400104489,1767118239110,-154.3763159,0.00027352,2]
[400104490,1767118239121,-210.0,0.00027397,2]
[400104491,1767118239131,-150.0,0.00027397,5]
[400104492,1767118239141,-553.64373807,0.00027399,2]
[400104493,1767118239152,-800.0,0.0002741,2]
[400104494,1767118239162,-600.0,0.00027439,2]
[400104495,1767118239172,-538.16108523,0.0002746,2]
[400104496,1767118239183,-800.0,0.0002749,2]
[400104497,1767118239193,-204.93982025,0.000275,2]
[400104498,1767118239203,-2021.32553266,0.00027523,2]
[400104499,1767118239214,-4609.0,0.00027579,2]
[400104500,1767118239226,-408.0,0.000276,2]
[400104501,1767118239237,-5000.0,0.0002761,7]
[400104502,1767118239250,-5000.0,0.00027615,4]
[400104503,1767118239260,-396.9116074,0.00027617,4]
[400104504,1767118239271,-311.44532849,0.00027617,4]
[400104505,1767118239282,-1587.64642959,0.00027617,4]
[400104506,1767118239293,-263.3346176,0.00027617,4]
[400104507,1767118239304,-1052.28513194,0.00027617,4]
[400104508,1767118239316,-1118.44289721,0.00027617,4]
[400104509,1767118239327,-1000.0,0.0002768,5]
[400104510,1767118239338,-37657.3822758,0.00027681,2]
[400104511,1767118239349,-2114.72966094,0.00027681,2]
[400104512,1767118239360,-37657.3822758,0.0002769,2]
[400104513,1767118239370,-2114.72966094,0.0002769,2]
[400104514,1767118239380,-37657.3822758,0.00027691,2]
[400104515,1767118239390,-2114.72966094,0.00027691,2]
[400104516,1767118239401,-5000.0,0.00027698,14]
[400104517,1767118239411,-151.49639709,0.00027699,2]
[400104518,1767118239422,-5000.0,0.00027699,10]
[400104519,1767118239434,-5000.0,0.00027699,5]
[400104520,1767118239445,-457.04735727,0.000277,2]
[400104521,1767118239455,-3000.0,0.000277,2]
[400104522,1767118239466,-386.36068775,0.000277,2]
[400104523,1767118239477,-695.44923795,0.000277,2]
[400104524,1767118239490,-1236.3542008,0.000277,2]
[400104525,1767118239500,-332.75585624,0.000277,2]
[400104526,1767118239511,-598.96054124,0.000277,2]
[400104527,1767118239522,-1064.81873998,0.000277,2]
[400104528,1767118239534,-1931.80343875,0.000277,2]
[400104529,1767118239544,-115.14686998,0.000277,2]
[400104530,1767118239560,-72.46248043,0.000277,2]
[400104531,1767118239571,-214.41068618,0.000277,2]
[400104532,1767118239580,-335.01669716,0.000277,2]
[400104533,1767118239591,-1000.0,0.000277,5]
[400104534,1767118239601,-1865.76813185,0.000277,2]
[400104535,1767118239611,-1000.0,0.000277,2]
[400104536,1767118239622,-250.0,0.000277,10]
[400104537,1767118239633,-198.417892,0.000277,2]
[400104538,1767118239644,-1662.11550193,0.000277,2]
[400104539,1767118239654,-2473.7247174,0.00027701,2]
[400104540,1767118239664,-3332.3773415,0.00027701,2]
[400104541,1767118239675,-37657.3822758,0.00027709,2]
[400104542,1767118239686,-2114.72966094,0.00027709,2]
[400104543,1767118239697,-3000.0,0.0002771,2]
[400104544,1767118239709,-5000.0,0.00027719,2]
[400104545,1767118239719,-600.0,0.00027719,2]
[400104546,1767118239730,-166.0,0.0002772,3]
[400104547,1767118239741,-172.0,0.0002772,3]
[400104548,1767118239751,-3000.0,0.0002772,2]
[400104549,1767118239761,-469.44015882,0.0002772,2]
[400104550,1767118239772,-500.0,0.0002772,5]
[400104551,1767118239783,-500.0,0.0002772,5]
[400104552,1767118239794,-500.0,0.0002772,20]
[400104553,1767118239804,-41270.06988424,0.0002772,2]
[400104554,1767118239821,-18249.48496521,0.0002772,2]
[400104555,1767118239833,-2784.92282678,0.0002772,2]
[400104560,1767118240559,-8989.69916831,0.0002772,2]
[400104576,1767118244485,-185.80157376,0.00021836,2]
[400104577,1767118244497,-263.07259658,0.00021836,2]
[400104578,1767118244507,-500.0,0.00021836,2]
[400104579,1767118244517,-283.5,0.00021836,2]
[400104580,1767118244527,-310.7330786,0.00021836,2]
[400104581,1767118244537,-500.0,0.00021836,2]
[400104582,1767118244547,-2106.21181045,0.0002772,2]
[400104614,1767118246047,-6635.13249359,0.0002772,2]
[400104626,1767118246153,-379.04637905,0.0002772,2]
[400104828,1767119230123,-238.94361962,0.00013273,2]
[400104830,1767119348121,-249.26675469,0.00013273,2]
[400104831,1767119348143,-150.0,0.00013326,2]
[400104832,1767119348164,-404.359649,0.00013699,2]
[400104833,1767119348185,-407.11553711,0.00013699,2]
[400104834,1767119348207,-177.0,0.00015326,2]
[400104835,1767119348228,-204.0,0.00017326,2]
[400104836,1767119348250,-231.0,0.00019326,2]
[400104837,1767119348272,-404.359649,0.00020187,2]
[400104838,1767119348296,-185.31878503,0.00020312,2]
[400104839,1767119348317,-1200.0,0.00020586,2]
[400104840,1767119348339,-146.43783317,0.00020586,2]
[400104987,1767119438151,-303.03030305,0.00020483,4]
[400104989,1767119438161,-300.0,0.00020586,2]
[400104991,1767119438171,-1200.0,0.00020586,2]
[400104993,1767119438180,-214.0,0.00020587,2]
[400104995,1767119438189,-500.0,0.00020587,2]
[400104997,1767119438199,-14558.18537549,0.00020587,2]
[400104999,1767119438208,-300.0,0.00020588,2]
[400105000,1767119438218,-300.0,0.00020588,2]
[400105002,1767119438227,-300.0,0.00020588,2]
[400105004,1767119438236,-300.0,0.00020588,2]
[400105006,1767119438246,-300.0,0.00020588,2]
[400105008,1767119438255,-300.0,0.00020588,2]
[400105010,1767119438265,-158.72957951,0.00020588,2]
[400105012,1767119438276,-141.27042049,0.00020588,2]
[400105014,1767119438286,-300.0,0.00020588,2]
[400105016,1767119438295,-300.0,0.00020588,2]
[400105018,1767119438304,-300.0,0.00020588,2]
[400105020,1767119438313,-300.0,0.00020588,2]
[400105023,1767119438322,-300.0,0.00020588,2]
[400105025,1767119438331,-300.0,0.00020588,2]
[400105027,1767119438340,-300.0,0.00020588,2]
[400105029,1767119438350,-300.0,0.00020588,2]
[400105031,1767119438359,-258.0,0.00021326,2]
[400105033,1767119438368,-500.0,0.00021917,2]
[400105035,1767119438377,-500.0,0.00021917,2]
[400105037,1767119438386,-500.0,0.00022068,2]
[400105039,1767119438394,-500.0,0.00022074,2]
[400105041,1767119438404,-500.0,0.0002213,2]
[400105043,1767119438413,-500.0,0.00022191,2]
[400105045,1767119438422,-500.0,0.00022191,2]
[400105047,1767119438431,-500.0,0.00022205,2]
[400105049,1767119438441,-420.0,0.00022403,2]
[400105051,1767119438450,-500.0,0.00022465,2]
[400105052,1767119438460,-500.0,0.00022465,2]
[400105054,1767119438469,-500.0,0.00022499,2]
[400105056,1767119438478,-1680.0,0.00022509,2]
[400105058,1767119438489,-600.0,0.00022523,10]
[400105060,1767119438499,-5382.91162192,0.00022625,2]
[400105062,1767119438508,-500.0,0.00022625,2]
[400105064,1767119438517,-500.0,0.00022725,2]
[400105066,1767119438528,-314.41766043,0.00022739,2]
[400105068,1767119438536,-500.0,0.00022739,2]
[400105070,1767119438546,-1041.66666667,0.00022848,2]
[400105072,1767119438555,-500.0,0.00023013,2]
[400105074,1767119438564,-179.30196423,0.00023075,2]
[400105075,1767119438573,-500.0,0.00023287,2]
[400105077,1767119438583,-285.0,0.00023326,2]
[400105079,1767119438592,-5000.0,0.00023513,2]
[400105081,1767119438602,-500.0,0.00023561,2]
[400105083,1767119438611,-500.0,0.00023835,2]
[400105085,1767119438620,-1702.26485803,0.00024,2]
[400105087,1767119438630,-500.0,0.00024109,2]
[400105089,1767119438639,-27398.66227658,0.00024142,2]
[400105090,1767119438649,-327.46993571,0.00024162,2]
[400105092,1767119438658,-221.59729443,0.00024162,2]
[400105094,1767119438667,-221.59729443,0.00024307,9]
[400105096,1767119438677,-587.0,0.00024379,2]
[400105098,1767119438687,-500.0,0.00024383,2]
[400105100,1767119438696,-221.59729443,0.00024453,17]
[400105102,1767119438706,-221.59729443,0.00024598,25]
[400105104,1767119438715,-2351.0,0.00024612,2]
[400105106,1767119438724,-230.98,0.0002464,10]
[400105108,1767119438733,-192.48,0.0002464,10]
[400105109,1767119438742,-113605.30120642,0.0002465,2]
[400105111,1767119438753,-500.0,0.00024657,2]
[400105113,1767119438762,-380.0,0.00024658,2]
[400105115,1767119438771,-314.04,0.000247,7]
[400105117,1767119438780,-500.0,0.00024722,2]
[400105119,1767119438790,-500.0,0.00024735,2]
[400105121,1767119438799,-221.59729443,0.00024743,32]
[400105123,1767119438809,-720.0,0.00024775,10]
[400105125,1767119438818,-500.0,0.0002487,2]
[400105127,1767119438827,-221.59729443,0.00024889,40]
[400105128,1767119438836,-500.0,0.00024931,2]
[400105130,1767119438846,-500.0,0.00024999,2]
[400105132,1767119438857,-500.0,0.00024999,2]
[400105134,1767119438866,-500.0,0.00024999,2]
[400105136,1767119438875,-206.44619307,0.00024999,2]
[400105138,1767119438886,-500.0,0.00024999,2]
[400105140,1767119438900,-500.0,0.00024999,2]
[400105142,1767119438911,-164.1099249,0.00024999,2]
[400105144,1767119438920,-500.0,0.00024999,2]
[400105146,1767119438932,-427.0348771,0.00024999,2]
[400105148,1767119438942,-500.0,0.00024999,2]
[400105149,1767119438951,-500.0,0.00024999,2]
[400105151,1767119438962,-500.0,0.00024999,2]
[400105153,1767119438971,-500.0,0.00024999,2]
[400105155,1767119438982,-588.37536549,0.00024999,2]
[400105157,1767119438992,-500.0,0.00024999,2]
[400105159,1767119439001,-500.0,0.00024999,2]
[400105161,1767119439010,-500.0,0.00024999,2]
[400105162,1767119439019,-500.0,0.00024999,2]
[400105164,1767119439030,-500.0,0.00024999,2]
[400105166,1767119439041,-613.05271268,0.00024999,2]
[400105168,1767119439050,-643.55785268,0.00024999,2]
[400105169,1767119439060,-10390.32906121,0.00025,2]
[400105170,1767119439069,-194807.99394161,0.00025,15]
[400105171,1767119439079,-1084.27758702,0.00025,2]
[400105172,1767119439088,-11293.20269687,0.00025,2]
[400105173,1767119439098,-2671.67802026,0.00025,2]
[400105174,1767119439107,-10364.0,0.00025,2]
[400105175,1767119439117,-500.0,0.00025,2]
[400105176,1767119439126,-150.0,0.00025,2]
[400105177,1767119439135,-1123.0,0.00025,5]
[400105178,1767119439145,-758.33034177,0.00025,2]
[400105179,1767119439155,-6362.12609487,0.00025,30]
[400105180,1767119439164,-1053.74,0.00025,14]
[400105181,1767119439174,-221.59729443,0.00025034,48]
[400105182,1767119439184,-504.67406641,0.00025179,2]
[400105183,1767119439193,-327.46993571,0.00025179,56]
[400105184,1767119439202,-221.59729443,0.00025179,56]
[400105185,1767119439212,-579.46320172,0.000252,5]
[400105186,1767119439222,-500.0,0.00025205,2]
[400105187,1767119439232,-221.59729443,0.00025325,63]
[400105188,1767119439241,-312.0,0.00025326,2]
[400105189,1767119439250,-297.33386872,0.00025434,30]
[400105190,1767119439259,-900.0,0.00025469,3]
[400105191,1767119439269,-221.59729443,0.0002547,71]
[400105192,1767119439278,-500.0,0.00025479,2]
[400105193,1767119439287,-1000.0,0.000255,2]
[400105194,1767119439297,-277.79443121,0.00025553,2]
[400105195,1767119439306,-221.59729443,0.00025615,79]
[400105196,1767119439315,-500.0,0.00025688,7]
[400105197,1767119439324,-500.0,0.00025753,2]
[400105198,1767119439333,-221.59729443,0.00025761,86]
[400105199,1767119439342,-314.04,0.000258,7]
[400105200,1767119439351,-150.0,0.00025829,2]
[400105201,1767119439361,-250.0,0.00025829,30]
[400105202,1767119439370,-1501.63207536,0.0002587,2]
[400105203,1767119439379,-221.59729443,0.00025906,94]
[400105204,1767119439388,-500.0,0.00025921,7]
[400105205,1767119439509,-150.0,0.00025966,2]
[400105206,1767119439519,-39742.13262439,0.00026,10]
[400105207,1767119439529,-529.2410511,0.00026,2]
[400105208,1767119439539,-3000.00000147,0.00026,30]
[400105209,1767119439549,-19489.81,0.00026,2]
[400105210,1767119439559,-161.0,0.00026,5]
[400105211,1767119439568,-500.0,0.00026027,2]
[400105212,1767119439578,-221.59729443,0.00026051,102]
[400105213,1767119439588,-500.0,0.00026076,7]
[400105214,1767119439597,-1053.74,0.000261,14]
[400105215,1767119439606,-200.0,0.00026103,2]
[400105216,1767119439615,-5000.0,0.00026113,2]
[400105217,1767119439625,-327.46993571,0.00026197,110]
[400105218,1767119439635,-221.59729443,0.00026197,110]
[400105219,1767119439644,-496.47127164,0.00026246,2]
[400105220,1767119439654,-250.0,0.00026246,2]
[400105221,1767119439663,-250.0,0.00026246,2]
[400105222,1767119439673,-500.0,0.00026246,2]
[400105223,1767119439682,-250.0,0.00026246,2]
[400105224,1767119439692,-500.0,0.00026246,2]
[400105225,1767119439701,-257.40548047,0.00026246,2]
[400105226,1767119439711,-500.0,0.00026246,2]
[400105227,1767119439722,-151.0,0.00026246,2]
[400105228,1767119439732,-500.0,0.00026246,2]
[400105229,1767119439742,-151.0,0.00026246,2]
[400105230,1767119439751,-151.0,0.00026246,2]
[400105231,1767119439760,-151.0,0.00026246,2]
[400105232,1767119439769,-2398.4119403,0.00026246,2]
[400105233,1767119439779,-151.0,0.00026246,2]
[400105234,1767119439788,-151.0,0.00026246,2]
[400105235,1767119439797,-151.0,0.00026246,2]
[400105236,1767119439807,-151.0,0.00026246,2]
[400105237,1767119439816,-151.0,0.00026246,2]
[400105238,1767119439826,-151.0,0.00026246,2]
[400105239,1767119439835,-151.0,0.00026246,2]
[400105240,1767119439845,-152.94870132,0.00026246,2]
[400105241,1767119439855,-151.0,0.00026246,2]
[400105242,1767119439864,-151.0,0.00026246,2]
[400105243,1767119439873,-151.0,0.00026246,2]
[400105244,1767119439883,-151.0,0.00026246,2]
[400105245,1767119439896,-500.0,0.00026301,2]
[400105246,1767119439905,-153.0,0.00026531,2]
[400105248,1767119439915,-446.33259655,0.00026575,2]
[400105250,1767119439924,-269.19084472,0.00026575,21]
[400105251,1767119439934,-600.0,0.00026611,2]
[400105252,1767119439943,-404.359649,0.00026676,2]
[400105253,1767119439953,-13544.08995543,0.00026688,2]
[400105254,1767119439965,-357.6120511,0.00026696,2]
[400105255,1767119439974,-1271.0,0.00026718,2]
[400105256,1767119439983,-16464.47965293,0.00026753,2]
[400105257,1767119439997,-9895.68794017,0.00026753,2]
[400105258,1767119440006,-1057.36483047,0.00026753,2]
[400105259,1767119440016,-211.13,0.00026755,3]
[400105260,1767119440025,-633.44,0.00026755,3]
[400105261,1767119440035,-500.0,0.00026762,2]
[400105262,1767119440044,-500.0,0.00026762,2]
[400105263,1767119440053,-500.0,0.00026762,2]
[400105264,1767119440063,-1780.64808233,0.00026768,2]
[400105265,1767119440075,-6995.667,0.00026768,2]
[400105268,1767119440398,-451.88,0.00026768,2]
[400105291,1767119446460,-26.54929107,0.00024062,2]
[400105292,1767119446475,-130.82155326,0.00024062,2]
[400105293,1767119446484,-2702.89953953,0.00024742,2]
[400105294,1767119446495,-871.94,0.00024742,2]
[400105421,1767120556126,-150.0,0.00021123,2]
[400105422,1767120556147,-4128.50402933,0.000212,2]
[400105423,1767120566113,-1871.49597067,0.000212,2]
[400105424,1767120566134,-1200.0,0.00021399,2]
[400105425,1767120566155,-300.0,0.00021399,2]
[400105426,1767120566176,-996.20459463,0.000214,2]
[400105430,1767120632160,-1231.3955753,0.000214,2]
[400105436,1767120632214,-1772.39983007,0.000214,2]
[400105438,1767120632224,-1365.2142283,0.00021493,2]
[400105440,1767120632233,-3500.0,0.000215,2]
[400105441,1767120632243,-1200.0,0.00021914,2]
[400105442,1767120632252,-153.0,0.00021915,2]
[400105444,1767120632262,-500.0,0.00021916,2]
[400105446,1767120632273,-504.67406641,0.00021916,2]
[400105448,1767120632283,-500.0,0.00021916,2]
[400105451,1767120632293,-2523.37652225,0.00021917,2]
[400105452,1767120632303,-430.82142807,0.00021917,2]
[400105454,1767120632312,-500.0,0.00021917,2]
[400105456,1767120632322,-297.21447789,0.00021917,2]
[400105458,1767120632332,-179.206786,0.00021999,2]
[400105459,1767120632341,-8000.0,0.00022,2]
[400105461,1767120632351,-500.0,0.00022191,2]
[400105463,1767120632360,-300.0,0.00022439,10]
[400105465,1767120632370,-300.0,0.00022439,10]
[400105466,1767120632379,-300.0,0.00022439,10]
[400105467,1767120632389,-300.0,0.00022439,10]
[400105468,1767120632398,-300.0,0.00022439,10]
[400105469,1767120632407,-300.0,0.00022439,10]
[400105470,1767120632417,-300.0,0.00022439,10]
[400105471,1767120632426,-300.0,0.00022439,10]
[400105472,1767120632436,-300.0,0.00022439,10]
[400105473,1767120632445,-300.0,0.00022439,10]
[400105474,1767120632455,-300.0,0.00022439,10]
[400105475,1767120632465,-300.0,0.00022439,10]
[400105476,1767120632474,-300.0,0.00022439,10]
[400105477,1767120632484,-300.0,0.00022439,10]
[400105478,1767120632492,-300.0,0.00022439,10]
[400105479,1767120632502,-500.0,0.00022465,2]
[400105480,1767120632511,-2912.3474433,0.00022562,2]
[400105481,1767120632520,-500.0,0.00022739,2]
[400105482,1767120632529,-500.0,0.00022766,2]
[400105483,1767120632539,-1041.66666667,0.00022872,2]
[400105484,1767120632548,-600.0,0.00022887,10]
[400105485,1767120632558,-500.0,0.00023013,2]
[400105486,1767120632567,-177.0,0.00023123,2]
[400105487,1767120632577,-4706.03040924,0.00023188,2]
[400105488,1767120632586,-446.33259655,0.00023287,2]
[400105489,1767120632595,-500.0,0.00023288,2]
[400105490,1767120632604,-5000.0,0.00023513,2]
[400105491,1767120632614,-1680.0,0.00023927,2]
[400105492,1767120632624,-67.41114697,0.00023999,2]
[400105506,1767120640381,-298.83153099,0.00023999,2]
[400105507,1767120640391,-160.11926901,0.00023999,2]
[400105508,1767120640435,-16.36688271,0.00023999,2]
[400105509,1767120640445,-179.22807919,0.00023999,2]
[400105510,1767120640455,-7000.0,0.00024,2]
[400105511,1767120640465,-684.0,0.00024,2]
[400105512,1767120640478,-500.0,0.00024141,2]
[400105513,1767120640491,-500.0,0.00024141,2]
[400105514,1767120640504,-216.01016234,0.0002444,2]
[400105515,1767120640517,-250.0,0.00024521,2]
[400105516,1767120640530,-500.0,0.00024649,2]
[400105517,1767120640541,-500.0,0.00024649,2]
[400105518,1767120640552,-500.0,0.00024649,2]
[400105520,1767120640563,-151.49639709,0.00024649,2]
[400105521,1767120640575,-200.0,0.00024658,2]
[400105522,1767120640587,-150.0,0.00024658,2]
[400105523,1767120640598,-150.0,0.00024795,2]
[400105524,1767120640610,-500.0,0.0002486,2]
[400105526,1767120640622,-200.0,0.00024932,2]
[400105527,1767120640634,-500.0,0.00025003,7]
[400105528,1767120640646,-204.0,0.00025123,2]
[400105529,1767120640657,-720.0,0.00025175,10]
[400105530,1767120640669,-1635.84760005,0.00025225,2]
[400105535,1767120644256,-2439.32849533,0.00025225,2]
[400105536,1767120644271,-630.8543138,0.00025225,2]
[400105537,1767120644283,-168.0,0.00025686,7]
[400105538,1767120644296,-705.4958862,0.00026033,2]
[400105539,1767120644309,-1315.82964645,0.00026033,2]
[400105540,1767120644318,-500.0,0.00026076,7]
[400105541,1767120644328,-124.72121566,0.00026097,2]
[400105544,1767120646499,-43.27878434,0.00026097,2]
[400105545,1767120646511,-500.0,0.00026118,2]
[400105546,1767120646521,-2398.4119403,0.00026118,2]
[400105547,1767120646532,-496.47127164,0.00026118,2]
[400105548,1767120646543,-500.0,0.00026118,2]
[400105549,1767120646554,-500.0,0.00026118,2]
[400105550,1767120646565,-500.0,0.00026118,2]
[400105551,1767120646578,-250.0,0.00026118,2]
[400105552,1767120646588,-250.0,0.00026118,2]
[400105553,1767120646599,-250.0,0.00026118,2]
[400105554,1767120646610,-257.40548047,0.00026118,2]
[400105555,1767120646621,-152.94870132,0.00026118,2]
[400105556,1767120646632,-151.0,0.00026118,2]
[400105557,1767120646643,-151.0,0.00026118,2]
[400105558,1767120646655,-151.0,0.00026118,2]
[400105559,1767120646665,-151.0,0.00026118,2]
[400105560,1767120646676,-151.0,0.00026118,2]
[400105561,1767120646687,-151.0,0.00026118,2]
[400105562,1767120646697,-151.0,0.00026118,2]
[400105563,1767120646708,-151.0,0.00026118,2]
[400105564,1767120646719,-151.0,0.00026118,2]
[400105565,1767120646729,-151.0,0.00026118,2]
[400105566,1767120646740,-151.0,0.00026118,2]
[400105567,1767120646751,-151.0,0.00026118,2]
[400105568,1767120646761,-151.0,0.00026118,2]
[400105569,1767120646772,-151.0,0.00026118,2]
[400105570,1767120646782,-151.0,0.00026118,2]